Workbook

Sheet TURMA EXEMPLO
H1: 6.8
A2: Matricula | B2: Nome | C2: e-mail | D2: 1ª N1 | E2: 2ª N1 | F2: N1 | G2: 1ª N2 | H2: 2ª N2 | I2: RN2 | J2: A.I. | K2: N2 | M2: MÉDIA FINAL | O2: e-mail N1 | P2: e-mail N2 | Q2: Frequência
A3: 2016.2.033.1234 | B3: Aluno Exemplo 01 | C3: aluno01@luisguilherme.com.br | D3: 4.9 | E3: 6.1 | F3: =ROUND(SUM(D3:E3)/2,1) -> 5.5 | G3: 4 | H3: 5.4 | I3: =ROUND((SUM(G3:H3)/2)*0.9,1) -> 4.2 | J3: 0.7 | K3: =I3+J3 -> 4.9 | M3: =TRUNC((K3*0.6+F3*0.4),1) -> 5.1 | Q3: 66
A4: 2016.2.033.1235 | B4: Aluno Exemplo 02 | C4: aluno02@luisguilherme.com.br | D4: 3.6 | E4: 1.4 | F4: =ROUND(SUM(D4:E4)/2,1) -> 2.5 | G4: 1.7 | H4: 2.9 | I4: 2.1 | J4: 0.7 | K4: =I4+J4 -> 2.8 | M4: 2.6 | Q4: 58
A5: 2016.2.033.1236 | B5: Aluno Exemplo 03 | C5: aluno03@luisguilherme.com.br | D5: 1.6 | E5: 1.8 | F5: 1.7 | G5: 6.1 | H5: 4.6 | I5: 4.8 | J5: 0.4 | K5: 5.2 | M5: 3.8 | Q5: 70
A6: 2016.2.033.1237 | B6: Aluno Exemplo 04 | C6: aluno04@luisguilherme.com.br | D6: 7.7 | E6: 8.2 | F6: 8 | G6: 4.3 | H6: 2.9 | I6: 3.2 | J6: 0.1 | K6: 3.3 | M6: 5.1 | Q6: 56
A7: 2016.2.033.1238 | B7: Aluno Exemplo 05 | C7: aluno05@luisguilherme.com.br | D7: 9.2 | E7: 2.4 | F7: 5.8 | G7: 5.3 | H7: 4.7 | I7: 4.5 | J7: 0.1 | K7: 4.6 | M7: 5 | Q7: 72
F8: 0 | I8: 0 | K8: 0 | M8: 0
F9: 0 | I9: 0 | K9: 0 | M9: 0
F10: 0 | I10: 0 | K10: 0 | M10: 0
F11: 0 | I11: 0 | K11: 0 | M11: 0
F12: 0 | I12: 0 | K12: 0 | M12: 0
F13: 0 | I13: 0 | K13: 0 | M13: 0
F14: 0 | I14: 0 | K14: 0 | M14: 0
F15: 0 | I15: 0 | K15: 0 | M15: 0
F16: 0 | I16: 0 | K16: 0 | M16: 0
F17: 0 | I17: 0 | K17: 0 | M17: 0
F18: 0 | I18: 0 | K18: 0 | M18: 0
F19: 0 | I19: 0 | K19: 0 | M19: 0
F20: 0 | I20: 0 | K20: 0 | M20: 0
F21: 0 | I21: 0 | K21: 0 | M21: 0
F22: 0 | I22: 0 | K22: 0 | M22: 0
F23: 0 | I23: 0 | K23: 0 | M23: 0
F24: 0 | I24: 0 | K24: 0 | M24: 0
F25: 0 | I25: 0 | K25: 0 | M25: 0
F26: 0 | I26: 0 | K26: 0 | M26: 0
F27: 0 | I27: 0 | K27: 0 | M27: 0
F28: 0 | I28: 0 | K28: 0 | M28: 0
F29: 0 | I29: 0 | K29: 0 | M29: 0
F30: 0 | I30: 0 | K30: 0 | M30: 0
F31: 0 | I31: 0 | K31: 0 | M31: 0
F32: 0 | I32: 0 | K32: 0 | M32: 0
F33: 0 | I33: 0 | K33: 0 | M33: 0
F34: 0 | I34: 0 | K34: 0 | M34: 0
F35: 0 | I35: =ROUND((SUM(G35:H35)/2)*0.9,1) -> 0 | K35: 0 | M35: =TRUNC((K35*0.6+F35*0.4),1) -> 0
F36: 0 | I36: 0 | K36: 0 | M36: 0
F37: 0 | I37: 0 | K37: 0 | M37: 0
F38: 0 | I38: 0 | K38: 0 | M38: 0
F39: 0 | I39: 0 | K39: 0 | M39: 0
F40: 0 | I40: 0 | K40: 0 | M40: 0
F41: 0 | I41: 0 | K41: 0 | M41: 0
F42: 0 | I42: 0 | K42: 0 | M42: 0
F43: 0 | I43: 0 | K43: 0 | M43: 0
F44: 0 | I44: 0 | K44: 0 | M44: 0
F45: 0 | I45: 0 | K45: 0 | M45: 0
F46: 0 | I46: 0 | K46: 0 | M46: 0
F47: 0 | I47: 0 | K47: 0 | M47: 0
F48: 0 | I48: 0 | K48: 0 | M48: 0
F49: 0 | I49: 0 | K49: 0 | M49: 0
F50: 0 | I50: 0 | K50: 0 | M50: 0
F51: 0 | I51: 0 | K51: 0 | M51: 0
F52: 0 | I52: 0 | K52: 0 | M52: 0
F53: 0 | I53: 0 | K53: 0 | M53: 0
F54: 0 | I54: 0 | K54: 0 | M54: 0
F55: 0 | I55: 0 | K55: 0 | M55: 0
F56: 0 | I56: 0 | K56: 0 | M56: 0
F57: 0 | I57: 0 | K57: 0 | M57: 0
F58: 0 | I58: 0 | K58: 0 | M58: 0
F59: 0 | I59: 0 | K59: 0 | M59: 0
F60: 0 | I60: 0 | K60: 0 | M60: 0
F61: 0 | I61: 0 | K61: 0 | M61: 0
F62: 0 | I62: 0 | K62: 0 | M62: 0
F63: 0 | I63: 0 | K63: 0 | M63: 0
B65: MÉDIA DAS NOTAS | D65: =AVERAGE(D3:D63) -> 5.4 | E65: =AVERAGE(E3:E63) -> 3.98 | F65: =SUM(F3:F63)/COUNTIF(F3:F63,"<>0") -> 4.7 | G65: =AVERAGE(G3:G63) -> 4.28 | H65: =AVERAGE(H3:H63) -> 4.1 | I65: - | J65: - | K65: =SUM(K3:K63)/COUNTIF(K3:K63,"<>0") -> 4.16 | M65: =SUM(M3:M63)/COUNTIF(M3:M63,"<>0") -> 4.32
B66: MAIOR NOTA | D66: =LARGE(D3:D63,1) -> 9.2 | E66: =LARGE(E3:E63,1) -> 8.2 | F66: =LARGE(F3:F63,1) -> 8 | G66: =LARGE(G3:G63,1) -> 6.1 | H66: =LARGE(H3:H63,1) -> 5.4 | I66: - | J66: - | K66: =LARGE(K3:K63,1) -> 5.2 | M66: =LARGE(M3:M63,1) -> 5.1
B67: MENOR NOTA | D67: =SMALL(D3:D63,1) -> 1.6 | E67: =SMALL(E3:E63,1) -> 1.4 | F67: =SMALL(F3:F63,COUNTIF(F3:F63,0)+1) -> 1.7 | G67: =SMALL(G3:G63,1) -> 1.7 | H67: =SMALL(H3:H63,1) -> 2.9 | I67: - | J67: - | K67: =SMALL(K3:K63,COUNTIF(K3:K63,0)+1) -> 2.8 | M67: =SMALL(M3:M63,COUNTIF(M3:M63,0)+1) -> 2.6
B68: QTDE DE NOTAS ABAIXO DE 5,0 | D68: =COUNTIF(D3:D63,"<5") -> 3 | E68: =COUNTIF(E3:E63,"<5") -> 3 | F68: =COUNTIFS(F3:F63,"<5",F3:F63,"<>0") -> 2 | G68: =COUNTIF(G3:G63,"<5") -> 3 | H68: =COUNTIF(H3:H63,"<5") -> 4 | I68: - | J68: - | K68: =COUNTIFS(K3:K63,"<5",K3:K63,"<>0") -> 4 | M68: =COUNTIFS(M3:M63,"<5",M3:M63,"<>0") -> 2 | N68: =M68/SUM($M$68:$M$69) -> 0.4
B69: QTDE DE NOTAS ACIMA DE 5,0 | D69: =COUNTIF(D3:D63,">=5") -> 2 | E69: =COUNTIF(E3:E63,">=5") -> 2 | F69: =COUNTIFS(F3:F63,">=5",F3:F63,"<>0") -> 3 | G69: =COUNTIF(G3:G63,">=5") -> 2 | H69: =COUNTIF(H3:H63,">=5") -> 1 | I69: - | J69: - | K69: =COUNTIFS(K3:K63,">=5",K3:K63,"<>0") -> 1 | M69: =COUNTIF(M3:M63,">=5") -> 3 | N69: =M69/SUM($M$68:$M$69) -> 0.6

Sheet ENG1530_A01 (impressão) (hidden)
G1: 7.6
A2: Matricula | B2: Nome | C2: 1ª N1 | D2: 2ª N1 | E2: N1 | F2: 1ª N2 | G2: 2ª N2 | H2: Est. Caso | I2: RN2 | J2: A.I. | K2: N2 | M2: MÉDIA FINAL
A3: 2008.1.025.3087 | B3: ALESSANDRA ARANTES REZIO | C3: =#REF! ->  | D3: =#REF! ->  | E3: =#REF! ->  | F3: =#REF! ->  | G3: =#REF! ->  | H3: =#REF! ->  | I3: =#REF! ->  | J3: =#REF! ->  | K3: =#REF! ->  | M3: =#REF! -> 
A4: 2007.1.035.2976 | B4: ANDRE BAHIA REIS | C4: =#REF! ->  | D4: =#REF! ->  | E4: =#REF! ->  | F4: =#REF! ->  | G4: =#REF! ->  | H4: =#REF! ->  | I4: =#REF! ->  | J4: =#REF! ->  | K4: =#REF! ->  | M4: =#REF! -> 
A5: 2012.1.035.0156 | B5: ARIANE MARTINS DA SILVA BIANO | C5: =#REF! ->  | D5: =#REF! ->  | E5: =#REF! ->  | F5: =#REF! ->  | G5: =#REF! ->  | H5: =#REF! ->  | I5: =#REF! ->  | J5: =#REF! ->  | K5: =#REF! ->  | M5: =#REF! -> 
A6: 2009.2.025.0039 | B6: CAMILA NUNES PERILLO | C6: =#REF! ->  | D6: =#REF! ->  | E6: =#REF! ->  | F6: =#REF! ->  | G6: =#REF! ->  | H6: =#REF! ->  | I6: =#REF! ->  | J6: =#REF! ->  | K6: =#REF! ->  | M6: =#REF! -> 
A7: 2011.1.025.0018 | B7: CAROLINE CAETANO ROSA ABREU | C7: =#REF! ->  | D7: =#REF! ->  | E7: =#REF! ->  | F7: =#REF! ->  | G7: =#REF! ->  | H7: =#REF! ->  | I7: =#REF! ->  | J7: =#REF! ->  | K7: =#REF! ->  | M7: =#REF! -> 
A8: 2010.2.025.0341 | B8: DANIELLE PAINS DE CARVALHO | C8: =#REF! ->  | D8: =#REF! ->  | E8: =#REF! ->  | F8: =#REF! ->  | G8: =#REF! ->  | H8: =#REF! ->  | I8: =#REF! ->  | J8: =#REF! ->  | K8: =#REF! ->  | M8: =#REF! -> 
A9: 2009.2.025.0173 | B9: DANILO AUGUSTO BATISTA MAGALHÃES | C9: =#REF! ->  | D9: =#REF! ->  | E9: =#REF! ->  | F9: =#REF! ->  | G9: =#REF! ->  | H9: =#REF! ->  | I9: =#REF! ->  | J9: =#REF! ->  | K9: =#REF! ->  | M9: =#REF! -> 
A10: 2002.2.025.0660 | B10: DANILO PRADO DE OLIVEIRA | C10: =#REF! ->  | D10: =#REF! ->  | E10: =#REF! ->  | F10: =#REF! ->  | G10: =#REF! ->  | H10: =#REF! ->  | I10: =#REF! ->  | J10: =#REF! ->  | K10: =#REF! ->  | M10: =#REF! -> 
A11: 2010.2.025.0547 | B11: DAVID HENRIQUE DE AZEVEDO ALVES | C11: =#REF! ->  | D11: =#REF! ->  | E11: =#REF! ->  | F11: =#REF! ->  | G11: =#REF! ->  | H11: =#REF! ->  | I11: =#REF! ->  | J11: =#REF! ->  | K11: =#REF! ->  | M11: =#REF! -> 
A12: 2008.2.035.0007 | B12: DAYANE RAMOS PIMENTA | C12: =#REF! ->  | D12: =#REF! ->  | E12: =#REF! ->  | F12: =#REF! ->  | G12: =#REF! ->  | H12: =#REF! ->  | I12: =#REF! ->  | J12: =#REF! ->  | K12: =#REF! ->  | M12: =#REF! -> 
A13: 2012.1.118.0141 | B13: DIOGO FERNANDES DE CARVALHO | C13: =#REF! ->  | D13: =#REF! ->  | E13: =#REF! ->  | F13: =#REF! ->  | G13: =#REF! ->  | H13: =#REF! ->  | I13: =#REF! ->  | J13: =#REF! ->  | K13: =#REF! ->  | M13: =#REF! -> 
A14: 2007.1.025.3566 | B14: DIOGO RODRIGUES BORGES | C14: =#REF! ->  | D14: =#REF! ->  | E14: =#REF! ->  | F14: =#REF! ->  | G14: =#REF! ->  | H14: =#REF! ->  | I14: =#REF! ->  | J14: =#REF! ->  | K14: =#REF! ->  | M14: =#REF! -> 
A15: 2009.1.035.0023 | B15: DORNIL ESPINDOLA COELHO NETO | C15: =#REF! ->  | D15: =#REF! ->  | E15: =#REF! ->  | F15: =#REF! ->  | G15: =#REF! ->  | H15: =#REF! ->  | I15: =#REF! ->  | J15: =#REF! ->  | K15: =#REF! ->  | M15: =#REF! -> 
A16: 2010.1.118.0010 | B16: EDUARDO RESENDE SOUSA | C16: =#REF! ->  | D16: =#REF! ->  | E16: =#REF! ->  | F16: =#REF! ->  | G16: =#REF! ->  | H16: =#REF! ->  | I16: =#REF! ->  | J16: =#REF! ->  | K16: =#REF! ->  | M16: =#REF! -> 
A17: 2008.1.038.2937 | B17: ELIO RODRIGUES DE FREITAS | C17: =#REF! ->  | D17: =#REF! ->  | E17: =#REF! ->  | F17: =#REF! ->  | G17: =#REF! ->  | H17: =#REF! ->  | I17: =#REF! ->  | J17: =#REF! ->  | K17: =#REF! ->  | M17: =#REF! -> 
A18: 2009.1.025.0137 | B18: FERNANDA CARNEIRO DOS SANTOS | C18: =#REF! ->  | D18: =#REF! ->  | E18: =#REF! ->  | F18: =#REF! ->  | G18: =#REF! ->  | H18: =#REF! ->  | I18: =#REF! ->  | J18: =#REF! ->  | K18: =#REF! ->  | M18: =#REF! -> 
A19: 2009.2.033.0077 | B19: FERNANDO LUCAS DE ASSIS BORGES | C19: =#REF! ->  | D19: =#REF! ->  | E19: =#REF! ->  | F19: =#REF! ->  | G19: =#REF! ->  | H19: =#REF! ->  | I19: =#REF! ->  | J19: =#REF! ->  | K19: =#REF! ->  | M19: =#REF! -> 
A20: 2009.1.118.0118 | B20: GUILHERME REIS BRAZ | C20: =#REF! ->  | D20: =#REF! ->  | E20: =#REF! ->  | F20: =#REF! ->  | G20: =#REF! ->  | H20: =#REF! ->  | I20: =#REF! ->  | J20: =#REF! ->  | K20: =#REF! ->  | M20: =#REF! -> 
A21: 2010.1.025.0167 | B21: GUSTAVO PEREIRA MATOS | C21: =#REF! ->  | D21: =#REF! ->  | E21: =#REF! ->  | F21: =#REF! ->  | G21: =#REF! ->  | H21: =#REF! ->  | I21: =#REF! ->  | J21: =#REF! ->  | K21: =#REF! ->  | M21: =#REF! -> 
A22: 2010.2.025.0560 | B22: HENRIQUE CURADO SANTANA PIRES MORALES | C22: =#REF! ->  | D22: =#REF! ->  | E22: =#REF! ->  | F22: =#REF! ->  | G22: =#REF! ->  | H22: =#REF! ->  | I22: =#REF! ->  | J22: =#REF! ->  | K22: =#REF! ->  | M22: =#REF! -> 
A23: 2010.2.025.0132 | B23: HUMBERTO DO CARMO | C23: =#REF! ->  | D23: =#REF! ->  | E23: =#REF! ->  | F23: =#REF! ->  | G23: =#REF! ->  | H23: =#REF! ->  | I23: =#REF! ->  | J23: =#REF! ->  | K23: =#REF! ->  | M23: =#REF! -> 
A24: 2010.2.025.0287 | B24: IASMIN CARDOSO RIBEIRO | C24: =#REF! ->  | D24: =#REF! ->  | E24: =#REF! ->  | F24: =#REF! ->  | G24: =#REF! ->  | H24: =#REF! ->  | I24: =#REF! ->  | J24: =#REF! ->  | K24: =#REF! ->  | M24: =#REF! -> 
A25: 2011.1.025.0059 | B25: JOÃO CARLOS MENDONÇA SANTOS | C25: =#REF! ->  | D25: =#REF! ->  | E25: =#REF! ->  | F25: =#REF! ->  | G25: =#REF! ->  | H25: =#REF! ->  | I25: =#REF! ->  | J25: =#REF! ->  | K25: =#REF! ->  | M25: =#REF! -> 
A26: 2009.1.035.0154 | B26: KASSIA FRANCIELLY SOARES DE OLIVEIRA | C26: =#REF! ->  | D26: =#REF! ->  | E26: =#REF! ->  | F26: =#REF! ->  | G26: =#REF! ->  | H26: =#REF! ->  | I26: =#REF! ->  | J26: =#REF! ->  | K26: =#REF! ->  | M26: =#REF! -> 
A27: 2009.1.035.0049 | B27: KEILANE DOS SANTOS VIEIRA | C27: =#REF! ->  | D27: =#REF! ->  | E27: =#REF! ->  | F27: =#REF! ->  | G27: =#REF! ->  | H27: =#REF! ->  | I27: =#REF! ->  | J27: =#REF! ->  | K27: =#REF! ->  | M27: =#REF! -> 
A28: 2010.2.025.0356 | B28: LUCA MASSI SAHIUM | C28: =#REF! ->  | D28: =#REF! ->  | E28: =#REF! ->  | F28: =#REF! ->  | G28: =#REF! ->  | H28: =#REF! ->  | I28: =#REF! ->  | J28: =#REF! ->  | K28: =#REF! ->  | M28: =#REF! -> 
A29: 2010.2.025.0158 | B29: LUCAS SPINELI SANTANA | C29: =#REF! ->  | D29: =#REF! ->  | E29: =#REF! ->  | F29: =#REF! ->  | G29: =#REF! ->  | H29: =#REF! ->  | I29: =#REF! ->  | J29: =#REF! ->  | K29: =#REF! ->  | M29: =#REF! -> 
A30: 2010.1.025.0263 | B30: LUIS FERNANDO MACEDO PAZ | C30: =#REF! ->  | D30: =#REF! ->  | E30: =#REF! ->  | F30: =#REF! ->  | G30: =#REF! ->  | H30: =#REF! ->  | I30: =#REF! ->  | J30: =#REF! ->  | K30: =#REF! ->  | M30: =#REF! -> 
A31: 2010.1.118.0068 | B31: LUIZ GONZAGA FERREIRA NETO | C31: =#REF! ->  | D31: =#REF! ->  | E31: =#REF! ->  | F31: =#REF! ->  | G31: =#REF! ->  | H31: =#REF! ->  | I31: =#REF! ->  | J31: =#REF! ->  | K31: =#REF! ->  | M31: =#REF! -> 
A32: 2009.1.035.0066 | B32: LUYNA NICOLI SILVA | C32: =#REF! ->  | D32: =#REF! ->  | E32: =#REF! ->  | F32: =#REF! ->  | G32: =#REF! ->  | H32: =#REF! ->  | I32: =#REF! ->  | J32: =#REF! ->  | K32: =#REF! ->  | M32: =#REF! -> 
A33: 2011.2.025.0465 | B33: MARCELO CAMARGO GALVÃO BARBOSA | C33: =#REF! ->  | D33: =#REF! ->  | E33: =#REF! ->  | F33: =#REF! ->  | G33: =#REF! ->  | H33: =#REF! ->  | I33: =#REF! ->  | J33: =#REF! ->  | K33: =#REF! ->  | M33: =#REF! -> 
A34: 2009.1.025.0847 | B34: MARCOS AURÉLIO PRUDENTE PEREIRA FILHO | C34: =#REF! ->  | D34: =#REF! ->  | E34: =#REF! ->  | F34: =#REF! ->  | G34: =#REF! ->  | H34: =#REF! ->  | I34: =#REF! ->  | J34: =#REF! ->  | K34: =#REF! ->  | M34: =#REF! -> 
A35: 2011.1.025.0335 | B35: MARCOS VINICIUS REIS BRETAS NETTO | C35: =#REF! ->  | D35: =#REF! ->  | E35: =#REF! ->  | F35: =#REF! ->  | G35: =#REF! ->  | H35: =#REF! ->  | I35: =#REF! ->  | J35: =#REF! ->  | K35: =#REF! ->  | M35: =#REF! -> 
A36: 2008.2.025.0254 | B36: MARCUS VINICIUS COELHO BITTAR | C36: =#REF! ->  | D36: =#REF! ->  | E36: =#REF! ->  | F36: =#REF! ->  | G36: =#REF! ->  | H36: =#REF! ->  | I36: =#REF! ->  | J36: =#REF! ->  | K36: =#REF! ->  | M36: =#REF! -> 
A37: 2009.1.035.0070 | B37: MARIANE BERNARDES GONÇALVES | C37: =#REF! ->  | D37: =#REF! ->  | E37: =#REF! ->  | F37: =#REF! ->  | G37: =#REF! ->  | H37: =#REF! ->  | I37: =#REF! ->  | J37: =#REF! ->  | K37: =#REF! ->  | M37: =#REF! -> 
A38: 2011.2.025.0620 | B38: MAYCON GUILHERME MOTA DOS SANTOS | C38: =#REF! ->  | D38: =#REF! ->  | E38: =#REF! ->  | F38: =#REF! ->  | G38: =#REF! ->  | H38: =#REF! ->  | I38: =#REF! ->  | J38: =#REF! ->  | K38: =#REF! ->  | M38: =#REF! -> 
A39: 2012.1.025.0419 | B39: PAULLA ISADORA DE SOUSA | C39: =#REF! ->  | D39: =#REF! ->  | E39: =#REF! ->  | F39: =#REF! ->  | G39: =#REF! ->  | H39: =#REF! ->  | I39: =#REF! ->  | J39: =#REF! ->  | K39: =#REF! ->  | M39: =#REF! -> 
A40: 2010.2.025.0383 | B40: PEDRO DE PAULA LOPES MACEDO | C40: =#REF! ->  | D40: =#REF! ->  | E40: =#REF! ->  | F40: =#REF! ->  | G40: =#REF! ->  | H40: =#REF! ->  | I40: =#REF! ->  | J40: =#REF! ->  | K40: =#REF! ->  | M40: =#REF! -> 
A41: 2009.1.029.0102 | B41: PEDRO HENRIQUE CAMPOS FARIA | C41: =#REF! ->  | D41: =#REF! ->  | E41: =#REF! ->  | F41: =#REF! ->  | G41: =#REF! ->  | H41: =#REF! ->  | I41: =#REF! ->  | J41: =#REF! ->  | K41: =#REF! ->  | M41: =#REF! -> 
A42: 2011.2.025.0398 | B42: PEDRO HENRIQUE FURTADO DO NASCIMENTO | C42: =#REF! ->  | D42: =#REF! ->  | E42: =#REF! ->  | F42: =#REF! ->  | G42: =#REF! ->  | H42: =#REF! ->  | I42: =#REF! ->  | J42: =#REF! ->  | K42: =#REF! ->  | M42: =#REF! -> 
A43: 2009.1.035.0092 | B43: PEDRO REZENDE MORAES | C43: =#REF! ->  | D43: =#REF! ->  | E43: =#REF! ->  | F43: =#REF! ->  | G43: =#REF! ->  | H43: =#REF! ->  | I43: =#REF! ->  | J43: =#REF! ->  | K43: =#REF! ->  | M43: =#REF! -> 
A44: 2010.1.025.0334 | B44: PHILIPPE PABLO ARANTES PINHEIRO | C44: =#REF! ->  | D44: =#REF! ->  | E44: =#REF! ->  | F44: =#REF! ->  | G44: =#REF! ->  | H44: =#REF! ->  | I44: =#REF! ->  | J44: =#REF! ->  | K44: =#REF! ->  | M44: =#REF! -> 
A45: 2007.1.038.4160 | B45: RAFAEL SOARES NOGUEIRA | C45: =#REF! ->  | D45: =#REF! ->  | E45: =#REF! ->  | F45: =#REF! ->  | G45: =#REF! ->  | H45: =#REF! ->  | I45: =#REF! ->  | J45: =#REF! ->  | K45: =#REF! ->  | M45: =#REF! -> 
A46: 2011.2.025.0403 | B46: REINER RIBEIRO DE CARVALHO | C46: =#REF! ->  | D46: =#REF! ->  | E46: =#REF! ->  | F46: =#REF! ->  | G46: =#REF! ->  | H46: =#REF! ->  | I46: =#REF! ->  | J46: =#REF! ->  | K46: =#REF! ->  | M46: =#REF! -> 
A47: 2009.1.035.0099 | B47: RENAN CARLOS DE ÁVILA | C47: =#REF! ->  | D47: =#REF! ->  | E47: =#REF! ->  | F47: =#REF! ->  | G47: =#REF! ->  | H47: =#REF! ->  | I47: =#REF! ->  | J47: =#REF! ->  | K47: =#REF! ->  | M47: =#REF! -> 
A48: 2008.2.035.0043 | B48: RICARDO NASCIMENTO CORREA | C48: =#REF! ->  | D48: =#REF! ->  | E48: =#REF! ->  | F48: =#REF! ->  | G48: =#REF! ->  | H48: =#REF! ->  | I48: =#REF! ->  | J48: =#REF! ->  | K48: =#REF! ->  | M48: =#REF! -> 
A49: 2010.1.038.0112 | B49: ROBERTO PETRONIO NAVES RIBEIRO | C49: =#REF! ->  | D49: =#REF! ->  | E49: =#REF! ->  | F49: =#REF! ->  | G49: =#REF! ->  | H49: =#REF! ->  | I49: =#REF! ->  | J49: =#REF! ->  | K49: =#REF! ->  | M49: =#REF! -> 
A50: 2011.1.118.0042 | B50: RODRIGO DIAS LOUBAK TEIXEIRA | C50: =#REF! ->  | D50: =#REF! ->  | E50: =#REF! ->  | F50: =#REF! ->  | G50: =#REF! ->  | H50: =#REF! ->  | I50: =#REF! ->  | J50: =#REF! ->  | K50: =#REF! ->  | M50: =#REF! -> 
A51: 2010.1.025.0372 | B51: ROGER XAVIER MILHOMEM PIRES | C51: =#REF! ->  | D51: =#REF! ->  | E51: =#REF! ->  | F51: =#REF! ->  | G51: =#REF! ->  | H51: =#REF! ->  | I51: =#REF! ->  | J51: =#REF! ->  | K51: =#REF! ->  | M51: =#REF! -> 
A52: 2007.2.025.2260 | B52: TATIANY CANDIDO DO CARMO | C52: =#REF! ->  | D52: =#REF! ->  | E52: =#REF! ->  | F52: =#REF! ->  | G52: =#REF! ->  | H52: =#REF! ->  | I52: =#REF! ->  | J52: =#REF! ->  | K52: =#REF! ->  | M52: =#REF! -> 
A53: 2011.2.025.0351 | B53: THÁGYLLA DE SOUZA OLIVEIRA ANDREATTA GONÇALVES | C53: =#REF! ->  | D53: =#REF! ->  | E53: =#REF! ->  | F53: =#REF! ->  | G53: =#REF! ->  | H53: =#REF! ->  | I53: =#REF! ->  | J53: =#REF! ->  | K53: =#REF! ->  | M53: =#REF! -> 
A54: 2010.2.025.0373 | B54: THAYS ROBERTA LOPES | C54: =#REF! ->  | D54: =#REF! ->  | E54: =#REF! ->  | F54: =#REF! ->  | G54: =#REF! ->  | H54: =#REF! ->  | I54: =#REF! ->  | J54: =#REF! ->  | K54: =#REF! ->  | M54: =#REF! -> 
A55: 2009.1.035.0249 | B55: THIAGO MOREIRA COSTA | C55: =#REF! ->  | D55: =#REF! ->  | E55: =#REF! ->  | F55: =#REF! ->  | G55: =#REF! ->  | H55: =#REF! ->  | I55: =#REF! ->  | J55: =#REF! ->  | K55: =#REF! ->  | M55: =#REF! -> 
A56: 2009.1.038.0119 | B56: VICTOR HUGO JESUS | C56: =#REF! ->  | D56: =#REF! ->  | E56: =#REF! ->  | F56: =#REF! ->  | G56: =#REF! ->  | H56: =#REF! ->  | I56: =#REF! ->  | J56: =#REF! ->  | K56: =#REF! ->  | M56: =#REF! -> 
A57: 2011.2.025.0249 | B57: VINICIUS SILVA GUIMARAES | C57: =#REF! ->  | D57: =#REF! ->  | E57: =#REF! ->  | F57: =#REF! ->  | G57: =#REF! ->  | H57: =#REF! ->  | I57: =#REF! ->  | J57: =#REF! ->  | K57: =#REF! ->  | M57: =#REF! -> 
A58: 2009.1.025.0426 | B58: VITOR MAIA VIANNA | C58: =#REF! ->  | D58: =#REF! ->  | E58: =#REF! ->  | F58: =#REF! ->  | G58: =#REF! ->  | H58: =#REF! ->  | I58: =#REF! ->  | J58: =#REF! ->  | K58: =#REF! ->  | M58: =#REF! -> 
A59: 2009.1.035.0189 | B59: VITOR SOUSA LOUSADA LOPES VIANA | C59: =#REF! ->  | D59: =#REF! ->  | E59: =#REF! ->  | F59: =#REF! ->  | G59: =#REF! ->  | H59: =#REF! ->  | I59: =#REF! ->  | J59: =#REF! ->  | K59: =#REF! ->  | M59: =#REF! -> 
A60: 2009.1.035.0119 | B60: WANESSA GOMES RODRIGUES | C60: =#REF! ->  | D60: =#REF! ->  | E60: =#REF! ->  | F60: =#REF! ->  | G60: =#REF! ->  | H60: =#REF! ->  | I60: =#REF! ->  | J60: =#REF! ->  | K60: =#REF! ->  | M60: =#REF! -> 
A61: 2010.2.025.0750 | B61: WESLEY DAVID LOIOLA CAMARGO | C61: =#REF! ->  | D61: =#REF! ->  | E61: =#REF! ->  | F61: =#REF! ->  | G61: =#REF! ->  | H61: =#REF! ->  | I61: =#REF! ->  | J61: =#REF! ->  | K61: =#REF! ->  | M61: =#REF! -> 
A62: 2012.2.025.0494 | B62: WILSON HONORATO RODRIGUES NETO | C62: =#REF! ->  | D62: =#REF! ->  | E62: =#REF! ->  | F62: =#REF! ->  | G62: =#REF! ->  | H62: =#REF! ->  | I62: =#REF! ->  | J62: =#REF! ->  | K62: =#REF! ->  | M62: =#REF! -> 

Sheet ENG1530_A02 (impressão) (hidden)
G1: 6.8
A2: Matricula | B2: Nome | C2: 1ª N1 | D2: 2ª N1 | E2: N1 | F2: 1ª N2 | G2: 2ª N2 | H2: Est. Caso | I2: RN2 | J2: A.I. | K2: N2 | M2: MÉDIA FINAL
A3: 2012.2.025.0007 | B3: ADRIANA CARVALHO COIMBRA | C3: ='TURMA EXEMPLO'!D3 -> 4.9 | D3: ='TURMA EXEMPLO'!E3 -> 6.1 | E3: ='TURMA EXEMPLO'!F3 -> 5.5 | F3: ='TURMA EXEMPLO'!G3 -> 4 | G3: ='TURMA EXEMPLO'!H3 -> 5.4 | H3: ='TURMA EXEMPLO'!#REF! ->  | I3: ='TURMA EXEMPLO'!I3 -> 4.2 | J3: ='TURMA EXEMPLO'!J3 -> 0.7 | K3: ='TURMA EXEMPLO'!K3 -> 4.9 | M3: ='TURMA EXEMPLO'!M3 -> 5.1
A4: 2009.1.025.0442 | B4: ADRIANO RODRIGUES SIMAO | C4: ='TURMA EXEMPLO'!D4 -> 3.6 | D4: ='TURMA EXEMPLO'!E4 -> 1.4 | E4: ='TURMA EXEMPLO'!F4 -> 2.5 | F4: ='TURMA EXEMPLO'!G4 -> 1.7 | G4: ='TURMA EXEMPLO'!H4 -> 2.9 | H4: ='TURMA EXEMPLO'!#REF! ->  | I4: ='TURMA EXEMPLO'!I4 -> 2.1 | J4: ='TURMA EXEMPLO'!J4 -> 0.7 | K4: ='TURMA EXEMPLO'!K4 -> 2.8 | M4: ='TURMA EXEMPLO'!M4 -> 2.6
A5: 2009.1.029.0061 | B5: ALAISE JUREMA GUIMARÃES DOS SANTOS | C5: ='TURMA EXEMPLO'!D5 -> 1.6 | D5: ='TURMA EXEMPLO'!E5 -> 1.8 | E5: ='TURMA EXEMPLO'!F5 -> 1.7 | F5: ='TURMA EXEMPLO'!G5 -> 6.1 | G5: ='TURMA EXEMPLO'!H5 -> 4.6 | H5: ='TURMA EXEMPLO'!#REF! ->  | I5: ='TURMA EXEMPLO'!I5 -> 4.8 | J5: ='TURMA EXEMPLO'!J5 -> 0.4 | K5: ='TURMA EXEMPLO'!K5 -> 5.2 | M5: ='TURMA EXEMPLO'!M5 -> 3.8
A6: 2010.2.118.0004 | B6: ALEXANDRE ROSSE GUIOTTI | C6: ='TURMA EXEMPLO'!D6 -> 7.7 | D6: ='TURMA EXEMPLO'!E6 -> 8.2 | E6: ='TURMA EXEMPLO'!F6 -> 8 | F6: ='TURMA EXEMPLO'!G6 -> 4.3 | G6: ='TURMA EXEMPLO'!H6 -> 2.9 | H6: ='TURMA EXEMPLO'!#REF! ->  | I6: ='TURMA EXEMPLO'!I6 -> 3.2 | J6: ='TURMA EXEMPLO'!J6 -> 0.1 | K6: ='TURMA EXEMPLO'!K6 -> 3.3 | M6: ='TURMA EXEMPLO'!M6 -> 5.1
A7: 2009.2.025.0001 | B7: ANA CAROLINA OLIVEIRA PAIVA | C7: ='TURMA EXEMPLO'!D7 -> 9.2 | D7: ='TURMA EXEMPLO'!E7 -> 2.4 | E7: ='TURMA EXEMPLO'!F7 -> 5.8 | F7: ='TURMA EXEMPLO'!G7 -> 5.3 | G7: ='TURMA EXEMPLO'!H7 -> 4.7 | H7: ='TURMA EXEMPLO'!#REF! ->  | I7: ='TURMA EXEMPLO'!I7 -> 4.5 | J7: ='TURMA EXEMPLO'!J7 -> 0.1 | K7: ='TURMA EXEMPLO'!K7 -> 4.6 | M7: ='TURMA EXEMPLO'!M7 -> 5
A8: 2009.1.025.0039 | B8: ANDRÉ DE SOUZA RIBEIRO | C8: ='TURMA EXEMPLO'!D8 -> 0 | D8: ='TURMA EXEMPLO'!E8 -> 0 | E8: ='TURMA EXEMPLO'!F8 -> 0 | F8: ='TURMA EXEMPLO'!G8 -> 0 | G8: ='TURMA EXEMPLO'!H8 -> 0 | H8: ='TURMA EXEMPLO'!#REF! ->  | I8: ='TURMA EXEMPLO'!I8 -> 0 | J8: ='TURMA EXEMPLO'!J8 -> 0 | K8: ='TURMA EXEMPLO'!K8 -> 0 | M8: ='TURMA EXEMPLO'!M8 -> 0
A9: 2011.1.025.0156 | B9: ANNA CECILIA MILLER | C9: ='TURMA EXEMPLO'!D9 -> 0 | D9: ='TURMA EXEMPLO'!E9 -> 0 | E9: ='TURMA EXEMPLO'!F9 -> 0 | F9: ='TURMA EXEMPLO'!G9 -> 0 | G9: ='TURMA EXEMPLO'!H9 -> 0 | H9: ='TURMA EXEMPLO'!#REF! ->  | I9: ='TURMA EXEMPLO'!I9 -> 0 | J9: ='TURMA EXEMPLO'!J9 -> 0 | K9: ='TURMA EXEMPLO'!K9 -> 0 | M9: ='TURMA EXEMPLO'!M9 -> 0
A10: 2009.1.025.0461 | B10: BARBARA MUNIZ YANO | C10: ='TURMA EXEMPLO'!D10 -> 0 | D10: ='TURMA EXEMPLO'!E10 -> 0 | E10: ='TURMA EXEMPLO'!F10 -> 0 | F10: ='TURMA EXEMPLO'!G10 -> 0 | G10: ='TURMA EXEMPLO'!H10 -> 0 | H10: ='TURMA EXEMPLO'!#REF! ->  | I10: ='TURMA EXEMPLO'!I10 -> 0 | J10: ='TURMA EXEMPLO'!J10 -> 0 | K10: ='TURMA EXEMPLO'!K10 -> 0 | M10: ='TURMA EXEMPLO'!M10 -> 0
A11: 2009.1.025.0056 | B11: BRENO UCHOA BENAVENTE BLACUTT | C11: ='TURMA EXEMPLO'!D11 -> 0 | D11: ='TURMA EXEMPLO'!E11 -> 0 | E11: ='TURMA EXEMPLO'!F11 -> 0 | F11: ='TURMA EXEMPLO'!G11 -> 0 | G11: ='TURMA EXEMPLO'!H11 -> 0 | H11: ='TURMA EXEMPLO'!#REF! ->  | I11: ='TURMA EXEMPLO'!I11 -> 0 | J11: ='TURMA EXEMPLO'!J11 -> 0 | K11: ='TURMA EXEMPLO'!K11 -> 0 | M11: ='TURMA EXEMPLO'!M11 -> 0
A12: 2008.2.025.0042 | B12: BRUNA LORHANA MARTINS MANRIQUE | C12: ='TURMA EXEMPLO'!D12 -> 0 | D12: ='TURMA EXEMPLO'!E12 -> 0 | E12: ='TURMA EXEMPLO'!F12 -> 0 | F12: ='TURMA EXEMPLO'!G12 -> 0 | G12: ='TURMA EXEMPLO'!H12 -> 0 | H12: ='TURMA EXEMPLO'!#REF! ->  | I12: ='TURMA EXEMPLO'!I12 -> 0 | J12: ='TURMA EXEMPLO'!J12 -> 0 | K12: ='TURMA EXEMPLO'!K12 -> 0 | M12: ='TURMA EXEMPLO'!M12 -> 0
A13: 2010.1.025.0464 | B13: CAIO EDUARDO EVANGELISTA GOMES | C13: ='TURMA EXEMPLO'!D13 -> 0 | D13: ='TURMA EXEMPLO'!E13 -> 0 | E13: ='TURMA EXEMPLO'!F13 -> 0 | F13: ='TURMA EXEMPLO'!G13 -> 0 | G13: ='TURMA EXEMPLO'!H13 -> 0 | H13: ='TURMA EXEMPLO'!#REF! ->  | I13: ='TURMA EXEMPLO'!I13 -> 0 | J13: ='TURMA EXEMPLO'!J13 -> 0 | K13: ='TURMA EXEMPLO'!K13 -> 0 | M13: ='TURMA EXEMPLO'!M13 -> 0
A14: 2008.2.029.0011 | B14: CAMILA CARVALHO COLU MOHAMAD SALAMA | C14: ='TURMA EXEMPLO'!D14 -> 0 | D14: ='TURMA EXEMPLO'!E14 -> 0 | E14: ='TURMA EXEMPLO'!F14 -> 0 | F14: ='TURMA EXEMPLO'!G14 -> 0 | G14: ='TURMA EXEMPLO'!H14 -> 0 | H14: ='TURMA EXEMPLO'!#REF! ->  | I14: ='TURMA EXEMPLO'!I14 -> 0 | J14: ='TURMA EXEMPLO'!J14 -> 0 | K14: ='TURMA EXEMPLO'!K14 -> 0 | M14: ='TURMA EXEMPLO'!M14 -> 0
A15: 2009.1.025.0072 | B15: CECÍLE GUIMARÃES ULHÔA | C15: ='TURMA EXEMPLO'!D15 -> 0 | D15: ='TURMA EXEMPLO'!E15 -> 0 | E15: ='TURMA EXEMPLO'!F15 -> 0 | F15: ='TURMA EXEMPLO'!G15 -> 0 | G15: ='TURMA EXEMPLO'!H15 -> 0 | H15: ='TURMA EXEMPLO'!#REF! ->  | I15: ='TURMA EXEMPLO'!I15 -> 0 | J15: ='TURMA EXEMPLO'!J15 -> 0 | K15: ='TURMA EXEMPLO'!K15 -> 0 | M15: ='TURMA EXEMPLO'!M15 -> 0
A16: 2010.1.025.0008 | B16: DANIELLE BORGES NAVES CANÇADO | C16: ='TURMA EXEMPLO'!D16 -> 0 | D16: ='TURMA EXEMPLO'!E16 -> 0 | E16: ='TURMA EXEMPLO'!F16 -> 0 | F16: ='TURMA EXEMPLO'!G16 -> 0 | G16: ='TURMA EXEMPLO'!H16 -> 0 | H16: ='TURMA EXEMPLO'!#REF! ->  | I16: ='TURMA EXEMPLO'!I16 -> 0 | J16: ='TURMA EXEMPLO'!J16 -> 0 | K16: ='TURMA EXEMPLO'!K16 -> 0 | M16: ='TURMA EXEMPLO'!M16 -> 0
A17: 2009.1.025.0089 | B17: DANILO SIMON FONSECA PEDROSO | C17: ='TURMA EXEMPLO'!D17 -> 0 | D17: ='TURMA EXEMPLO'!E17 -> 0 | E17: ='TURMA EXEMPLO'!F17 -> 0 | F17: ='TURMA EXEMPLO'!G17 -> 0 | G17: ='TURMA EXEMPLO'!H17 -> 0 | H17: ='TURMA EXEMPLO'!#REF! ->  | I17: ='TURMA EXEMPLO'!I17 -> 0 | J17: ='TURMA EXEMPLO'!J17 -> 0 | K17: ='TURMA EXEMPLO'!K17 -> 0 | M17: ='TURMA EXEMPLO'!M17 -> 0
A18: 2009.1.025.0094 | B18: DIEGO ARAUJO | C18: ='TURMA EXEMPLO'!D18 -> 0 | D18: ='TURMA EXEMPLO'!E18 -> 0 | E18: ='TURMA EXEMPLO'!F18 -> 0 | F18: ='TURMA EXEMPLO'!G18 -> 0 | G18: ='TURMA EXEMPLO'!H18 -> 0 | H18: ='TURMA EXEMPLO'!#REF! ->  | I18: ='TURMA EXEMPLO'!I18 -> 0 | J18: ='TURMA EXEMPLO'!J18 -> 0 | K18: ='TURMA EXEMPLO'!K18 -> 0 | M18: ='TURMA EXEMPLO'!M18 -> 0
A19: 2009.1.025.0099 | B19: DIOGO LIMA GUIMARÃES | C19: ='TURMA EXEMPLO'!D19 -> 0 | D19: ='TURMA EXEMPLO'!E19 -> 0 | E19: ='TURMA EXEMPLO'!F19 -> 0 | F19: ='TURMA EXEMPLO'!G19 -> 0 | G19: ='TURMA EXEMPLO'!H19 -> 0 | H19: ='TURMA EXEMPLO'!#REF! ->  | I19: ='TURMA EXEMPLO'!I19 -> 0 | J19: ='TURMA EXEMPLO'!J19 -> 0 | K19: ='TURMA EXEMPLO'!K19 -> 0 | M19: ='TURMA EXEMPLO'!M19 -> 0
A20: 2009.1.025.0127 | B20: ERLUCIVÂNIA BUENO DA SILVA | C20: ='TURMA EXEMPLO'!D20 -> 0 | D20: ='TURMA EXEMPLO'!E20 -> 0 | E20: ='TURMA EXEMPLO'!F20 -> 0 | F20: ='TURMA EXEMPLO'!G20 -> 0 | G20: ='TURMA EXEMPLO'!H20 -> 0 | H20: ='TURMA EXEMPLO'!#REF! ->  | I20: ='TURMA EXEMPLO'!I20 -> 0 | J20: ='TURMA EXEMPLO'!J20 -> 0 | K20: ='TURMA EXEMPLO'!K20 -> 0 | M20: ='TURMA EXEMPLO'!M20 -> 0
A21: 2009.1.025.0134 | B21: FELIPE RODRIGUES DE MELO | C21: ='TURMA EXEMPLO'!D21 -> 0 | D21: ='TURMA EXEMPLO'!E21 -> 0 | E21: ='TURMA EXEMPLO'!F21 -> 0 | F21: ='TURMA EXEMPLO'!G21 -> 0 | G21: ='TURMA EXEMPLO'!H21 -> 0 | H21: ='TURMA EXEMPLO'!#REF! ->  | I21: ='TURMA EXEMPLO'!I21 -> 0 | J21: ='TURMA EXEMPLO'!J21 -> 0 | K21: ='TURMA EXEMPLO'!K21 -> 0 | M21: ='TURMA EXEMPLO'!M21 -> 0
A22: 2009.2.025.0214 | B22: FERNANDA PEDROSO CAIXETA | C22: ='TURMA EXEMPLO'!D22 -> 0 | D22: ='TURMA EXEMPLO'!E22 -> 0 | E22: ='TURMA EXEMPLO'!F22 -> 0 | F22: ='TURMA EXEMPLO'!G22 -> 0 | G22: ='TURMA EXEMPLO'!H22 -> 0 | H22: ='TURMA EXEMPLO'!#REF! ->  | I22: ='TURMA EXEMPLO'!I22 -> 0 | J22: ='TURMA EXEMPLO'!J22 -> 0 | K22: ='TURMA EXEMPLO'!K22 -> 0 | M22: ='TURMA EXEMPLO'!M22 -> 0
A23: 2010.1.025.0146 | B23: GABRIELLA RIBEIRO MOTTA | C23: ='TURMA EXEMPLO'!D23 -> 0 | D23: ='TURMA EXEMPLO'!E23 -> 0 | E23: ='TURMA EXEMPLO'!F23 -> 0 | F23: ='TURMA EXEMPLO'!G23 -> 0 | G23: ='TURMA EXEMPLO'!H23 -> 0 | H23: ='TURMA EXEMPLO'!#REF! ->  | I23: ='TURMA EXEMPLO'!I23 -> 0 | J23: ='TURMA EXEMPLO'!J23 -> 0 | K23: ='TURMA EXEMPLO'!K23 -> 0 | M23: ='TURMA EXEMPLO'!M23 -> 0
A24: 2009.1.025.0626 | B24: GUILHERME ARAUJO NAVES | C24: ='TURMA EXEMPLO'!D24 -> 0 | D24: ='TURMA EXEMPLO'!E24 -> 0 | E24: ='TURMA EXEMPLO'!F24 -> 0 | F24: ='TURMA EXEMPLO'!G24 -> 0 | G24: ='TURMA EXEMPLO'!H24 -> 0 | H24: ='TURMA EXEMPLO'!#REF! ->  | I24: ='TURMA EXEMPLO'!I24 -> 0 | J24: ='TURMA EXEMPLO'!J24 -> 0 | K24: ='TURMA EXEMPLO'!K24 -> 0 | M24: ='TURMA EXEMPLO'!M24 -> 0
A25: 2009.1.025.0171 | B25: GUILHERME RODRIGUES ADORNO | C25: ='TURMA EXEMPLO'!D25 -> 0 | D25: ='TURMA EXEMPLO'!E25 -> 0 | E25: ='TURMA EXEMPLO'!F25 -> 0 | F25: ='TURMA EXEMPLO'!G25 -> 0 | G25: ='TURMA EXEMPLO'!H25 -> 0 | H25: ='TURMA EXEMPLO'!#REF! ->  | I25: ='TURMA EXEMPLO'!I25 -> 0 | J25: ='TURMA EXEMPLO'!J25 -> 0 | K25: ='TURMA EXEMPLO'!K25 -> 0 | M25: ='TURMA EXEMPLO'!M25 -> 0
A26: 2012.1.025.0703 | B26: GUSTAVO PINTO DOS SANTOS | C26: ='TURMA EXEMPLO'!D26 -> 0 | D26: ='TURMA EXEMPLO'!E26 -> 0 | E26: ='TURMA EXEMPLO'!F26 -> 0 | F26: ='TURMA EXEMPLO'!G26 -> 0 | G26: ='TURMA EXEMPLO'!H26 -> 0 | H26: ='TURMA EXEMPLO'!#REF! ->  | I26: ='TURMA EXEMPLO'!I26 -> 0 | J26: ='TURMA EXEMPLO'!J26 -> 0 | K26: ='TURMA EXEMPLO'!K26 -> 0 | M26: ='TURMA EXEMPLO'!M26 -> 0
A27: 2009.1.029.0013 | B27: HELEN CAROLINE MATIAS FARIA | C27: ='TURMA EXEMPLO'!D27 -> 0 | D27: ='TURMA EXEMPLO'!E27 -> 0 | E27: ='TURMA EXEMPLO'!F27 -> 0 | F27: ='TURMA EXEMPLO'!G27 -> 0 | G27: ='TURMA EXEMPLO'!H27 -> 0 | H27: ='TURMA EXEMPLO'!#REF! ->  | I27: ='TURMA EXEMPLO'!I27 -> 0 | J27: ='TURMA EXEMPLO'!J27 -> 0 | K27: ='TURMA EXEMPLO'!K27 -> 0 | M27: ='TURMA EXEMPLO'!M27 -> 0
A28: 2009.1.025.0186 | B28: HENRIQUE PALMER RODRIGUES ROLIM | C28: ='TURMA EXEMPLO'!D28 -> 0 | D28: ='TURMA EXEMPLO'!E28 -> 0 | E28: ='TURMA EXEMPLO'!F28 -> 0 | F28: ='TURMA EXEMPLO'!G28 -> 0 | G28: ='TURMA EXEMPLO'!H28 -> 0 | H28: ='TURMA EXEMPLO'!#REF! ->  | I28: ='TURMA EXEMPLO'!I28 -> 0 | J28: ='TURMA EXEMPLO'!J28 -> 0 | K28: ='TURMA EXEMPLO'!K28 -> 0 | M28: ='TURMA EXEMPLO'!M28 -> 0
A29: 2009.1.025.0190 | B29: HUDSON WALLICY FONSECA SILVA | C29: ='TURMA EXEMPLO'!D29 -> 0 | D29: ='TURMA EXEMPLO'!E29 -> 0 | E29: ='TURMA EXEMPLO'!F29 -> 0 | F29: ='TURMA EXEMPLO'!G29 -> 0 | G29: ='TURMA EXEMPLO'!H29 -> 0 | H29: ='TURMA EXEMPLO'!#REF! ->  | I29: ='TURMA EXEMPLO'!I29 -> 0 | J29: ='TURMA EXEMPLO'!J29 -> 0 | K29: ='TURMA EXEMPLO'!K29 -> 0 | M29: ='TURMA EXEMPLO'!M29 -> 0
A30: 2001.2.025.0209 | B30: IEDA DE OLIVEIRA LOUZA | C30: ='TURMA EXEMPLO'!D30 -> 0 | D30: ='TURMA EXEMPLO'!E30 -> 0 | E30: ='TURMA EXEMPLO'!F30 -> 0 | F30: ='TURMA EXEMPLO'!G30 -> 0 | G30: ='TURMA EXEMPLO'!H30 -> 0 | H30: ='TURMA EXEMPLO'!#REF! ->  | I30: ='TURMA EXEMPLO'!I30 -> 0 | J30: ='TURMA EXEMPLO'!J30 -> 0 | K30: ='TURMA EXEMPLO'!K30 -> 0 | M30: ='TURMA EXEMPLO'!M30 -> 0
A31: 2010.2.025.0139 | B31: ISABELA GODOY DE SOUZA | C31: ='TURMA EXEMPLO'!D31 -> 0 | D31: ='TURMA EXEMPLO'!E31 -> 0 | E31: ='TURMA EXEMPLO'!F31 -> 0 | F31: ='TURMA EXEMPLO'!G31 -> 0 | G31: ='TURMA EXEMPLO'!H31 -> 0 | H31: ='TURMA EXEMPLO'!#REF! ->  | I31: ='TURMA EXEMPLO'!I31 -> 0 | J31: ='TURMA EXEMPLO'!J31 -> 0 | K31: ='TURMA EXEMPLO'!K31 -> 0 | M31: ='TURMA EXEMPLO'!M31 -> 0
A32: 2010.1.025.0185 | B32: JANDER SEBASTIAO DE GOUVEIA FRANCO FILHO | C32: ='TURMA EXEMPLO'!D32 -> 0 | D32: ='TURMA EXEMPLO'!E32 -> 0 | E32: ='TURMA EXEMPLO'!F32 -> 0 | F32: ='TURMA EXEMPLO'!G32 -> 0 | G32: ='TURMA EXEMPLO'!H32 -> 0 | H32: ='TURMA EXEMPLO'!#REF! ->  | I32: ='TURMA EXEMPLO'!I32 -> 0 | J32: ='TURMA EXEMPLO'!J32 -> 0 | K32: ='TURMA EXEMPLO'!K32 -> 0 | M32: ='TURMA EXEMPLO'!M32 -> 0
A33: 2008.2.029.0019 | B33: JESSICA FRANCIANE COSTA RIBEIRO | C33: ='TURMA EXEMPLO'!D33 -> 0 | D33: ='TURMA EXEMPLO'!E33 -> 0 | E33: ='TURMA EXEMPLO'!F33 -> 0 | F33: ='TURMA EXEMPLO'!G33 -> 0 | G33: ='TURMA EXEMPLO'!H33 -> 0 | H33: ='TURMA EXEMPLO'!#REF! ->  | I33: ='TURMA EXEMPLO'!I33 -> 0 | J33: ='TURMA EXEMPLO'!J33 -> 0 | K33: ='TURMA EXEMPLO'!K33 -> 0 | M33: ='TURMA EXEMPLO'!M33 -> 0
A34: 2009.1.025.0518 | B34: JESSIKA GARCIA BRITO | C34: ='TURMA EXEMPLO'!D34 -> 0 | D34: ='TURMA EXEMPLO'!E34 -> 0 | E34: ='TURMA EXEMPLO'!F34 -> 0 | F34: ='TURMA EXEMPLO'!G34 -> 0 | G34: ='TURMA EXEMPLO'!H34 -> 0 | H34: ='TURMA EXEMPLO'!#REF! ->  | I34: ='TURMA EXEMPLO'!I34 -> 0 | J34: ='TURMA EXEMPLO'!J34 -> 0 | K34: ='TURMA EXEMPLO'!K34 -> 0 | M34: ='TURMA EXEMPLO'!M34 -> 0
A35: 2009.1.025.0778 | B35: JOAO FELIPE RODRIGUES DA SILVA | C35: ='TURMA EXEMPLO'!D35 -> 0 | D35: ='TURMA EXEMPLO'!E35 -> 0 | E35: ='TURMA EXEMPLO'!F35 -> 0 | F35: ='TURMA EXEMPLO'!G35 -> 0 | G35: ='TURMA EXEMPLO'!H35 -> 0 | H35: ='TURMA EXEMPLO'!#REF! ->  | I35: ='TURMA EXEMPLO'!I35 -> 0 | J35: ='TURMA EXEMPLO'!J35 -> 0 | K35: ='TURMA EXEMPLO'!K35 -> 0 | M35: ='TURMA EXEMPLO'!M35 -> 0
A36: 2010.1.025.0855 | B36: JOAO VITOR DE PAULA BRITO NASCIMENTO | C36: ='TURMA EXEMPLO'!D36 -> 0 | D36: ='TURMA EXEMPLO'!E36 -> 0 | E36: ='TURMA EXEMPLO'!F36 -> 0 | F36: ='TURMA EXEMPLO'!G36 -> 0 | G36: ='TURMA EXEMPLO'!H36 -> 0 | H36: ='TURMA EXEMPLO'!#REF! ->  | I36: ='TURMA EXEMPLO'!I36 -> 0 | J36: ='TURMA EXEMPLO'!J36 -> 0 | K36: ='TURMA EXEMPLO'!K36 -> 0 | M36: ='TURMA EXEMPLO'!M36 -> 0
A37: 2009.1.025.0530 | B37: LARA DEYZE SOUZA BRAGA | C37: ='TURMA EXEMPLO'!D37 -> 0 | D37: ='TURMA EXEMPLO'!E37 -> 0 | E37: ='TURMA EXEMPLO'!F37 -> 0 | F37: ='TURMA EXEMPLO'!G37 -> 0 | G37: ='TURMA EXEMPLO'!H37 -> 0 | H37: ='TURMA EXEMPLO'!#REF! ->  | I37: ='TURMA EXEMPLO'!I37 -> 0 | J37: ='TURMA EXEMPLO'!J37 -> 0 | K37: ='TURMA EXEMPLO'!K37 -> 0 | M37: ='TURMA EXEMPLO'!M37 -> 0
A38: 2009.1.025.0240 | B38: LARISSA ALVES CARRIÃO | C38: ='TURMA EXEMPLO'!D38 -> 0 | D38: ='TURMA EXEMPLO'!E38 -> 0 | E38: ='TURMA EXEMPLO'!F38 -> 0 | F38: ='TURMA EXEMPLO'!G38 -> 0 | G38: ='TURMA EXEMPLO'!H38 -> 0 | H38: ='TURMA EXEMPLO'!#REF! ->  | I38: ='TURMA EXEMPLO'!I38 -> 0 | J38: ='TURMA EXEMPLO'!J38 -> 0 | K38: ='TURMA EXEMPLO'!K38 -> 0 | M38: ='TURMA EXEMPLO'!M38 -> 0
A39: 2009.1.025.0869 | B39: LEANDRO ARAUJO BORGES | C39: ='TURMA EXEMPLO'!D39 -> 0 | D39: ='TURMA EXEMPLO'!E39 -> 0 | E39: ='TURMA EXEMPLO'!F39 -> 0 | F39: ='TURMA EXEMPLO'!G39 -> 0 | G39: ='TURMA EXEMPLO'!H39 -> 0 | H39: ='TURMA EXEMPLO'!#REF! ->  | I39: ='TURMA EXEMPLO'!I39 -> 0 | J39: ='TURMA EXEMPLO'!J39 -> 0 | K39: ='TURMA EXEMPLO'!K39 -> 0 | M39: ='TURMA EXEMPLO'!M39 -> 0
A40: 2009.1.025.0250 | B40: LEONARDO BERTINI | C40: ='TURMA EXEMPLO'!D40 -> 0 | D40: ='TURMA EXEMPLO'!E40 -> 0 | E40: ='TURMA EXEMPLO'!F40 -> 0 | F40: ='TURMA EXEMPLO'!G40 -> 0 | G40: ='TURMA EXEMPLO'!H40 -> 0 | H40: ='TURMA EXEMPLO'!#REF! ->  | I40: ='TURMA EXEMPLO'!I40 -> 0 | J40: ='TURMA EXEMPLO'!J40 -> 0 | K40: ='TURMA EXEMPLO'!K40 -> 0 | M40: ='TURMA EXEMPLO'!M40 -> 0
A41: 2007.1.025.2324 | B41: LORRAN DE CASTRO CONSTANT | C41: ='TURMA EXEMPLO'!D41 -> 0 | D41: ='TURMA EXEMPLO'!E41 -> 0 | E41: ='TURMA EXEMPLO'!F41 -> 0 | F41: ='TURMA EXEMPLO'!G41 -> 0 | G41: ='TURMA EXEMPLO'!H41 -> 0 | H41: ='TURMA EXEMPLO'!#REF! ->  | I41: ='TURMA EXEMPLO'!I41 -> 0 | J41: ='TURMA EXEMPLO'!J41 -> 0 | K41: ='TURMA EXEMPLO'!K41 -> 0 | M41: ='TURMA EXEMPLO'!M41 -> 0
A42: 2009.1.025.0259 | B42: LUANA ÂNGELO TEIXEIRA | C42: ='TURMA EXEMPLO'!D42 -> 0 | D42: ='TURMA EXEMPLO'!E42 -> 0 | E42: ='TURMA EXEMPLO'!F42 -> 0 | F42: ='TURMA EXEMPLO'!G42 -> 0 | G42: ='TURMA EXEMPLO'!H42 -> 0 | H42: ='TURMA EXEMPLO'!#REF! ->  | I42: ='TURMA EXEMPLO'!I42 -> 0 | J42: ='TURMA EXEMPLO'!J42 -> 0 | K42: ='TURMA EXEMPLO'!K42 -> 0 | M42: ='TURMA EXEMPLO'!M42 -> 0
A43: 2009.1.025.0273 | B43: LUIZ HENRIQUE CARVALHO DE MIRANDA FILHO | C43: ='TURMA EXEMPLO'!D43 -> 0 | D43: ='TURMA EXEMPLO'!E43 -> 0 | E43: ='TURMA EXEMPLO'!F43 -> 0 | F43: ='TURMA EXEMPLO'!G43 -> 0 | G43: ='TURMA EXEMPLO'!H43 -> 0 | H43: ='TURMA EXEMPLO'!#REF! ->  | I43: ='TURMA EXEMPLO'!I43 -> 0 | J43: ='TURMA EXEMPLO'!J43 -> 0 | K43: ='TURMA EXEMPLO'!K43 -> 0 | M43: ='TURMA EXEMPLO'!M43 -> 0
A44: 2008.1.025.2224 | B44: MARCO AURELIO MACEDO PAZ | C44: ='TURMA EXEMPLO'!D44 -> 0 | D44: ='TURMA EXEMPLO'!E44 -> 0 | E44: ='TURMA EXEMPLO'!F44 -> 0 | F44: ='TURMA EXEMPLO'!G44 -> 0 | G44: ='TURMA EXEMPLO'!H44 -> 0 | H44: ='TURMA EXEMPLO'!#REF! ->  | I44: ='TURMA EXEMPLO'!I44 -> 0 | J44: ='TURMA EXEMPLO'!J44 -> 0 | K44: ='TURMA EXEMPLO'!K44 -> 0 | M44: ='TURMA EXEMPLO'!M44 -> 0
A45: 2009.1.029.0032 | B45: MARCOS FLÁVIO RIBEIRO VALÉRIO JÚNIOR | C45: ='TURMA EXEMPLO'!D45 -> 0 | D45: ='TURMA EXEMPLO'!E45 -> 0 | E45: ='TURMA EXEMPLO'!F45 -> 0 | F45: ='TURMA EXEMPLO'!G45 -> 0 | G45: ='TURMA EXEMPLO'!H45 -> 0 | H45: ='TURMA EXEMPLO'!#REF! ->  | I45: ='TURMA EXEMPLO'!I45 -> 0 | J45: ='TURMA EXEMPLO'!J45 -> 0 | K45: ='TURMA EXEMPLO'!K45 -> 0 | M45: ='TURMA EXEMPLO'!M45 -> 0
A46: 2009.1.025.0304 | B46: MIRELLA TALITHA ROCHA | C46: ='TURMA EXEMPLO'!D46 -> 0 | D46: ='TURMA EXEMPLO'!E46 -> 0 | E46: ='TURMA EXEMPLO'!F46 -> 0 | F46: ='TURMA EXEMPLO'!G46 -> 0 | G46: ='TURMA EXEMPLO'!H46 -> 0 | H46: ='TURMA EXEMPLO'!#REF! ->  | I46: ='TURMA EXEMPLO'!I46 -> 0 | J46: ='TURMA EXEMPLO'!J46 -> 0 | K46: ='TURMA EXEMPLO'!K46 -> 0 | M46: ='TURMA EXEMPLO'!M46 -> 0
A47: 2009.1.025.0311 | B47: NAPHAYRA ANUSCA SOUSA ARAÚJO | C47: ='TURMA EXEMPLO'!D47 -> 0 | D47: ='TURMA EXEMPLO'!E47 -> 0 | E47: ='TURMA EXEMPLO'!F47 -> 0 | F47: ='TURMA EXEMPLO'!G47 -> 0 | G47: ='TURMA EXEMPLO'!H47 -> 0 | H47: ='TURMA EXEMPLO'!#REF! ->  | I47: ='TURMA EXEMPLO'!I47 -> 0 | J47: ='TURMA EXEMPLO'!J47 -> 0 | K47: ='TURMA EXEMPLO'!K47 -> 0 | M47: ='TURMA EXEMPLO'!M47 -> 0
A48: 2009.1.025.0936 | B48: RAFAEL LUCAS CAMELO BUENO UEHARA | C48: ='TURMA EXEMPLO'!D48 -> 0 | D48: ='TURMA EXEMPLO'!E48 -> 0 | E48: ='TURMA EXEMPLO'!F48 -> 0 | F48: ='TURMA EXEMPLO'!G48 -> 0 | G48: ='TURMA EXEMPLO'!H48 -> 0 | H48: ='TURMA EXEMPLO'!#REF! ->  | I48: ='TURMA EXEMPLO'!I48 -> 0 | J48: ='TURMA EXEMPLO'!J48 -> 0 | K48: ='TURMA EXEMPLO'!K48 -> 0 | M48: ='TURMA EXEMPLO'!M48 -> 0
A49: 2010.1.025.0343 | B49: RAFAELA CAROLINA RUIVO SANTOS | C49: ='TURMA EXEMPLO'!D49 -> 0 | D49: ='TURMA EXEMPLO'!E49 -> 0 | E49: ='TURMA EXEMPLO'!F49 -> 0 | F49: ='TURMA EXEMPLO'!G49 -> 0 | G49: ='TURMA EXEMPLO'!H49 -> 0 | H49: ='TURMA EXEMPLO'!#REF! ->  | I49: ='TURMA EXEMPLO'!I49 -> 0 | J49: ='TURMA EXEMPLO'!J49 -> 0 | K49: ='TURMA EXEMPLO'!K49 -> 0 | M49: ='TURMA EXEMPLO'!M49 -> 0
A50: 2010.1.025.0364 | B50: RICARDO COSTA MENDES | C50: ='TURMA EXEMPLO'!D50 -> 0 | D50: ='TURMA EXEMPLO'!E50 -> 0 | E50: ='TURMA EXEMPLO'!F50 -> 0 | F50: ='TURMA EXEMPLO'!G50 -> 0 | G50: ='TURMA EXEMPLO'!H50 -> 0 | H50: ='TURMA EXEMPLO'!#REF! ->  | I50: ='TURMA EXEMPLO'!I50 -> 0 | J50: ='TURMA EXEMPLO'!J50 -> 0 | K50: ='TURMA EXEMPLO'!K50 -> 0 | M50: ='TURMA EXEMPLO'!M50 -> 0
A51: 2009.1.025.0374 | B51: RODOLFO DE SOUZA LOPES | C51: ='TURMA EXEMPLO'!D51 -> 0 | D51: ='TURMA EXEMPLO'!E51 -> 0 | E51: ='TURMA EXEMPLO'!F51 -> 0 | F51: ='TURMA EXEMPLO'!G51 -> 0 | G51: ='TURMA EXEMPLO'!H51 -> 0 | H51: ='TURMA EXEMPLO'!#REF! ->  | I51: ='TURMA EXEMPLO'!I51 -> 0 | J51: ='TURMA EXEMPLO'!J51 -> 0 | K51: ='TURMA EXEMPLO'!K51 -> 0 | M51: ='TURMA EXEMPLO'!M51 -> 0
A52: 2009.1.025.0377 | B52: RODOLFO PROCÓPIO CHAGAS | C52: ='TURMA EXEMPLO'!D52 -> 0 | D52: ='TURMA EXEMPLO'!E52 -> 0 | E52: ='TURMA EXEMPLO'!F52 -> 0 | F52: ='TURMA EXEMPLO'!G52 -> 0 | G52: ='TURMA EXEMPLO'!H52 -> 0 | H52: ='TURMA EXEMPLO'!#REF! ->  | I52: ='TURMA EXEMPLO'!I52 -> 0 | J52: ='TURMA EXEMPLO'!J52 -> 0 | K52: ='TURMA EXEMPLO'!K52 -> 0 | M52: ='TURMA EXEMPLO'!M52 -> 0
A53: 2009.1.025.0573 | B53: RODRIGO MAGALHÃES PARAIZO BORGES | C53: ='TURMA EXEMPLO'!D53 -> 0 | D53: ='TURMA EXEMPLO'!E53 -> 0 | E53: ='TURMA EXEMPLO'!F53 -> 0 | F53: ='TURMA EXEMPLO'!G53 -> 0 | G53: ='TURMA EXEMPLO'!H53 -> 0 | H53: ='TURMA EXEMPLO'!#REF! ->  | I53: ='TURMA EXEMPLO'!I53 -> 0 | J53: ='TURMA EXEMPLO'!J53 -> 0 | K53: ='TURMA EXEMPLO'!K53 -> 0 | M53: ='TURMA EXEMPLO'!M53 -> 0
A54: 2009.1.025.0381 | B54: RODRIGO RODRIGUES VASCONCELOS | C54: ='TURMA EXEMPLO'!D54 -> 0 | D54: ='TURMA EXEMPLO'!E54 -> 0 | E54: ='TURMA EXEMPLO'!F54 -> 0 | F54: ='TURMA EXEMPLO'!G54 -> 0 | G54: ='TURMA EXEMPLO'!H54 -> 0 | H54: ='TURMA EXEMPLO'!#REF! ->  | I54: ='TURMA EXEMPLO'!I54 -> 0 | J54: ='TURMA EXEMPLO'!J54 -> 0 | K54: ='TURMA EXEMPLO'!K54 -> 0 | M54: ='TURMA EXEMPLO'!M54 -> 0
A55: 2009.1.025.0747 | B55: RÔNEY JOSÉ BARBOSA CÂNDIDO | C55: ='TURMA EXEMPLO'!D55 -> 0 | D55: ='TURMA EXEMPLO'!E55 -> 0 | E55: ='TURMA EXEMPLO'!F55 -> 0 | F55: ='TURMA EXEMPLO'!G55 -> 0 | G55: ='TURMA EXEMPLO'!H55 -> 0 | H55: ='TURMA EXEMPLO'!#REF! ->  | I55: ='TURMA EXEMPLO'!I55 -> 0 | J55: ='TURMA EXEMPLO'!J55 -> 0 | K55: ='TURMA EXEMPLO'!K55 -> 0 | M55: ='TURMA EXEMPLO'!M55 -> 0
A56: 2005.1.025.0459 | B56: SAMUELL JOAQUIM VALADARES E CARVALHO PIRES | C56: ='TURMA EXEMPLO'!D56 -> 0 | D56: ='TURMA EXEMPLO'!E56 -> 0 | E56: ='TURMA EXEMPLO'!F56 -> 0 | F56: ='TURMA EXEMPLO'!G56 -> 0 | G56: ='TURMA EXEMPLO'!H56 -> 0 | H56: ='TURMA EXEMPLO'!#REF! ->  | I56: ='TURMA EXEMPLO'!I56 -> 0 | J56: ='TURMA EXEMPLO'!J56 -> 0 | K56: ='TURMA EXEMPLO'!K56 -> 0 | M56: ='TURMA EXEMPLO'!M56 -> 0
A57: 2010.2.025.0207 | B57: STÉPHANE DE SOUSA PAULA | C57: ='TURMA EXEMPLO'!D57 -> 0 | D57: ='TURMA EXEMPLO'!E57 -> 0 | E57: ='TURMA EXEMPLO'!F57 -> 0 | F57: ='TURMA EXEMPLO'!G57 -> 0 | G57: ='TURMA EXEMPLO'!H57 -> 0 | H57: ='TURMA EXEMPLO'!#REF! ->  | I57: ='TURMA EXEMPLO'!I57 -> 0 | J57: ='TURMA EXEMPLO'!J57 -> 0 | K57: ='TURMA EXEMPLO'!K57 -> 0 | M57: ='TURMA EXEMPLO'!M57 -> 0
A58: 2009.1.025.0581 | B58: TAYNARA MIRELLE CORDEIRO RAMOS | C58: ='TURMA EXEMPLO'!D58 -> 0 | D58: ='TURMA EXEMPLO'!E58 -> 0 | E58: ='TURMA EXEMPLO'!F58 -> 0 | F58: ='TURMA EXEMPLO'!G58 -> 0 | G58: ='TURMA EXEMPLO'!H58 -> 0 | H58: ='TURMA EXEMPLO'!#REF! ->  | I58: ='TURMA EXEMPLO'!I58 -> 0 | J58: ='TURMA EXEMPLO'!J58 -> 0 | K58: ='TURMA EXEMPLO'!K58 -> 0 | M58: ='TURMA EXEMPLO'!M58 -> 0
A59: 2009.2.025.0307 | B59: THALLES TEIXEIRA NASCIMENTO OLIVEIRA MOTA | C59: ='TURMA EXEMPLO'!D59 -> 0 | D59: ='TURMA EXEMPLO'!E59 -> 0 | E59: ='TURMA EXEMPLO'!F59 -> 0 | F59: ='TURMA EXEMPLO'!G59 -> 0 | G59: ='TURMA EXEMPLO'!H59 -> 0 | H59: ='TURMA EXEMPLO'!#REF! ->  | I59: ='TURMA EXEMPLO'!I59 -> 0 | J59: ='TURMA EXEMPLO'!J59 -> 0 | K59: ='TURMA EXEMPLO'!K59 -> 0 | M59: ='TURMA EXEMPLO'!M59 -> 0
A60: 2010.2.025.0221 | B60: VICTOR PAIXÃO DIAS AQUINO MELO | C60: ='TURMA EXEMPLO'!D60 -> 0 | D60: ='TURMA EXEMPLO'!E60 -> 0 | E60: ='TURMA EXEMPLO'!F60 -> 0 | F60: ='TURMA EXEMPLO'!G60 -> 0 | G60: ='TURMA EXEMPLO'!H60 -> 0 | H60: ='TURMA EXEMPLO'!#REF! ->  | I60: ='TURMA EXEMPLO'!I60 -> 0 | J60: ='TURMA EXEMPLO'!J60 -> 0 | K60: ='TURMA EXEMPLO'!K60 -> 0 | M60: ='TURMA EXEMPLO'!M60 -> 0
A61: 2010.1.025.0410 | B61: VINÍCIUS ALMEIDA JORDÃO | C61: ='TURMA EXEMPLO'!D61 -> 0 | D61: ='TURMA EXEMPLO'!E61 -> 0 | E61: ='TURMA EXEMPLO'!F61 -> 0 | F61: ='TURMA EXEMPLO'!G61 -> 0 | G61: ='TURMA EXEMPLO'!H61 -> 0 | H61: ='TURMA EXEMPLO'!#REF! ->  | I61: ='TURMA EXEMPLO'!I61 -> 0 | J61: ='TURMA EXEMPLO'!J61 -> 0 | K61: ='TURMA EXEMPLO'!K61 -> 0 | M61: ='TURMA EXEMPLO'!M61 -> 0
A62: 2009.1.025.0422 | B62: VINÍCIUS CONFORTI PRUDENTE | C62: ='TURMA EXEMPLO'!D62 -> 0 | D62: ='TURMA EXEMPLO'!E62 -> 0 | E62: ='TURMA EXEMPLO'!F62 -> 0 | F62: ='TURMA EXEMPLO'!G62 -> 0 | G62: ='TURMA EXEMPLO'!H62 -> 0 | H62: ='TURMA EXEMPLO'!#REF! ->  | I62: ='TURMA EXEMPLO'!I62 -> 0 | J62: ='TURMA EXEMPLO'!J62 -> 0 | K62: ='TURMA EXEMPLO'!K62 -> 0 | M62: ='TURMA EXEMPLO'!M62 -> 0
A63: 2009.1.025.0683 | B63: WARLEY RAPHAEL PEREIRA MOTA | C63: ='TURMA EXEMPLO'!D63 -> 0 | D63: ='TURMA EXEMPLO'!E63 -> 0 | E63: ='TURMA EXEMPLO'!F63 -> 0 | F63: ='TURMA EXEMPLO'!G63 -> 0 | G63: ='TURMA EXEMPLO'!H63 -> 0 | H63: ='TURMA EXEMPLO'!#REF! ->  | I63: ='TURMA EXEMPLO'!I63 -> 0 | J63: ='TURMA EXEMPLO'!J63 -> 0 | K63: ='TURMA EXEMPLO'!K63 -> 0 | M63: ='TURMA EXEMPLO'!M63 -> 0
